fUST/lending_fUST_20241105
["ID","MTS","AMOUNT","RATE_DAILY","PERIOD"]
[341318600,1730782241388,-500.0,0.00024658,2]
[341318601,1730782241397,-500.0,0.00024658,2]
[341318602,1730782241406,-500.0,0.00024658,2]
[341318603,1730782241415,-385.02671467,0.00024658,2]
[341318604,1730782241424,-500.0,0.00024658,2]
[341318605,1730782241433,-500.0,0.00024658,2]
[341318606,1730782241443,-500.0,0.00024658,2]
[341318607,1730782241452,-500.0,0.00024658,2]
[341318608,1730782241462,-500.0,0.00024658,2]
[341318609,1730782241472,-500.0,0.00024658,2]
[341318610,1730782241481,-500.0,0.00024658,2]
[341318611,1730782241491,-500.0,0.00024658,2]
[341318612,1730782241500,-151.0,0.00024658,7]
[341318613,1730782241509,-151.0,0.00024658,7]
[341318614,1730782241519,-500.0,0.00024658,2]
[341318615,1730782241528,-500.0,0.00024658,2]
[341318616,1730782241537,-500.0,0.00024658,2]
[341318617,1730782241547,-500.0,0.00024658,2]
[341318618,1730782241558,-500.0,0.00024658,2]
[341318619,1730782241568,-500.0,0.00024658,2]
[341318620,1730782241577,-450.0,0.00024658,2]
[341318621,1730782241586,-500.0,0.00024658,2]
[341318622,1730782241595,-500.0,0.00024658,2]
[341318623,1730782241605,-500.0,0.00024658,2]
[341318624,1730782241614,-151.0,0.00024658,7]
[341318625,1730782241623,-151.0,0.00024658,7]
[341318626,1730782241632,-161.869578,0.00024658,7]
[341318627,1730782241642,-151.0,0.00024658,7]
[341318628,1730782241651,-170.026749,0.00024658,7]
[341318629,1730782241660,-151.0,0.00024658,7]
[341318630,1730782241669,-5000.0,0.00024658,2]
[341318631,1730782241678,-151.0,0.00024658,7]
[341318632,1730782241688,-5000.0,0.00024658,2]
[341318633,1730782241697,-223.927726,0.00024658,7]
[341318634,1730782241706,-5000.0,0.00024658,2]
[341318635,1730782241715,-5000.0,0.00024658,2]
[341318636,1730782241724,-5000.0,0.00024658,2]
[341318637,1730782241733,-5000.0,0.00024658,2]
[341318638,1730782241742,-5000.0,0.00024658,2]
[341318639,1730782241751,-5000.0,0.00024658,2]
[341318640,1730782241761,-5000.0,0.00024658,2]
[341318641,1730782241770,-5000.0,0.00024658,2]
[341318642,1730782241779,-5000.0,0.00024658,2]
[341318643,1730782241789,-5000.0,0.00024658,2]
[341318644,1730782241798,-2799.66922898,0.00024658,2]
[341318653,1730782246614,-2200.33077102,0.00024658,2]
[341318654,1730782246623,-5000.0,0.00024658,2]
[341318655,1730782246633,-5000.0,0.00024658,2]
[341318656,1730782246642,-1933.96245698,0.00024658,2]
[341318658,1730782342572,161.524876,0.00013973,2]
[341318673,1730782877843,161.228314,0.00013973,2]
[341318678,1730783254125,-166.666666,0.00023677,2]
[341318679,1730783254150,-300.0,0.00023903,2]
[341318680,1730783254177,-300.0,0.00023903,2]
[341318681,1730783254205,-150.844,0.00023904,2]
[341318682,1730783254227,-297.31,0.00023904,2]
[341318683,1730783254250,-1101.724,0.00023904,2]
[341318684,1730783254271,-529.0,0.00023904,2]
[341318685,1730783254296,-1316.75087647,0.00023904,2]
[341318693,1730783366725,161.524876,0.00013973,2]
[341318746,1730783437834,-749.7686672,0.00023904,2]
[341318747,1730783437846,-327.48045633,0.00023904,2]
[341318748,1730783437855,-300.0,0.00023963,2]
[341318749,1730783437865,-122.51707017,0.00023964,2]
[341318750,1730783438000,-511.18949429,0.00023964,2]
[341318751,1730783438011,-495.0387394,0.00023964,2]
[341318752,1730783438020,-169.49468502,0.00023964,2]
[341318753,1730783438029,-169.94486156,0.00023964,2]
[341318754,1730783438039,-500.0,0.00023964,2]
[341318755,1730783438049,-24880.0,0.00023965,2]
[341318756,1730783438058,-157.54069927,0.000242,120]
[341318757,1730783438067,-174.79354921,0.00024453,2]
[341318767,1730783439914,-522.96105201,0.00024453,2]
[341318768,1730783439924,-1023.82494853,0.00024558,2]
[341318769,1730783439935,-81.98035592,0.00024558,2]
[341318770,1730783439945,-171.25573877,0.00024657,2]
[341318771,1730783439954,-500.0,0.00024658,2]
[341318772,1730783439964,-440.31665051,0.00024658,2]
[341318773,1730783439973,-500.0,0.00024658,2]
[341318774,1730783439982,-376.11407941,0.00024658,2]
[341318775,1730783439992,-18.88294356,0.00024658,2]
[341318776,1730783440005,-481.11705644,0.00024658,2]
[341318777,1730783440014,-4969.27808608,0.00025,2]
[341318778,1730783440024,-2571.4914609,0.000252,2]
[341318811,1730783445855,-2719.11150467,0.000252,2]
[341318812,1730783445867,-153.0,0.000252,2]
[341318813,1730783445878,-187.24,0.00025205,9]
[341318814,1730783445889,-488.39100503,0.00025707,2]
[341318815,1730783445899,-420.0,0.00025988,2]
[341318816,1730783445909,-153.0,0.0002663,2]
[341318817,1730783445918,-153.0,0.0002663,2]
[341318818,1730783445928,-153.0,0.0002663,2]
[341318819,1730783445936,-153.0,0.0002663,2]
[341318820,1730783445945,-153.0,0.0002663,2]
[341318821,1730783445952,-153.0,0.0002663,2]
[341318822,1730783445960,-155.4657402,0.0002663,2]
[341318823,1730783445969,-153.0,0.0002663,2]
[341318824,1730783445978,-153.0,0.0002663,2]
[341318825,1730783445988,-153.0,0.0002663,2]
[341318826,1730783445997,-239.9933188,0.0002663,2]
[341318827,1730783446007,-946.876,0.00026904,2]
[341318828,1730783446014,-291.53819423,0.00027,7]
[341318829,1730783446022,-1105.80530443,0.00027035,2]
[341318830,1730783446032,-169.867,0.000278,30]
[341318831,1730783446039,-155.89771111,0.00028,120]
[341318832,1730783446047,-587.0,0.00028184,2]
[341318833,1730783446055,-155.3509947,0.00028411,2]
[341318834,1730783446063,-153.0,0.00028685,2]
[341318835,1730783446070,-211.1877169,0.00028685,2]
[341318836,1730783446077,-211.1877169,0.00028685,2]
[341318837,1730783446086,-153.0,0.00028685,2]
[341318838,1730783446094,-211.1877169,0.00028685,2]
[341318839,1730783446102,-153.0,0.00028685,2]
[341318840,1730783446108,-211.1877169,0.00028685,2]
[341318841,1730783446116,-154.9672155,0.00028685,2]
[341318842,1730783446123,-211.1877169,0.00028685,2]
[341318843,1730783446131,-211.1877169,0.00028685,2]
[341318844,1730783446139,-211.1877169,0.00028685,2]
[341318845,1730783446145,-215.3759546,0.00028685,2]
[341318846,1730783446152,-211.1877169,0.00028685,2]
[341318847,1730783446160,-211.1877169,0.00028685,2]
[341318848,1730783446167,-211.1877169,0.00028685,2]
[341318849,1730783446176,-211.1877169,0.00028685,2]
[341318850,1730783446185,-205.8093117,0.00028685,2]
[341318851,1730783446193,-3326.8426148,0.00029,120]
[341318852,1730783446201,-5000.0,0.00029,2]
[341318853,1730783446208,-1739.99267634,0.00029,2]
[341318856,1730783616912,10000.0,0.00020185,2]
[341318857,1730783955005,167.230492,0.00013973,2]
[341318864,1730784391136,-192.08641196,0.000269,2]
[341318865,1730784391160,-42.64219952,0.00027,2]
[341318866,1730784438090,-122.35780048,0.00027,2]
[341318867,1730784438114,-300.0,0.00027721,2]
[341318868,1730784438136,-253.56063655,0.00027721,2]
[341318869,1730784438159,-1695.08786933,0.00027722,2]
[341318874,1730784454122,-165.0,0.00027,2]
[341318875,1730784454145,-94.25399275,0.00027722,2]
[341318885,1730784508315,161.524876,0.00013973,2]
[341318953,1730784631967,-150.765,0.00024304,2]
[341318954,1730784631977,-1001.657,0.00024304,2]
[341318955,1730784631986,-171.35258276,0.000269,2]
[341318957,1730784631997,-300.0,0.00027721,2]
[341318958,1730784632006,-124.18298556,0.00027722,2]
[341318962,1730784635820,-640.09287023,0.00027722,2]
[341318975,1730784638204,-12166.30482643,0.00027722,2]
[341318976,1730784638214,-194.183454,0.00028271,2]
[341318977,1730784638223,-194.183454,0.00028956,2]
[341318978,1730784638236,-614.0,0.000295,2]
[341318979,1730784638246,-194.183454,0.00029641,2]
[341318980,1730784638257,-152.0,0.00029651,2]
[341318981,1730784638266,-420.0,0.00029948,2]
[341318982,1730784638278,-179.69870074,0.0003,90]
[341318983,1730784638288,-177.87,0.0003,2]
[341318984,1730784638297,-154.595,0.0003,2]
[341318985,1730784638307,-177.89675,0.0003,2]
[341318986,1730784638317,-177.89675,0.0003,2]
[341318987,1730784638326,-155.057,0.0003,2]
[341318988,1730784638336,-224.0,0.0003,2]
[341318989,1730784638345,-187.241,0.00030089,25]
[341318990,1730784638355,-516.2991466,0.00030136,3]
[341318991,1730784638364,-510.62396154,0.00030136,3]
[341318992,1730784638373,-500.0,0.00030136,3]
[341318993,1730784638383,-526.05060189,0.00030136,3]
[341318994,1730784638392,-158.039498,0.00030136,7]
[341318995,1730784638402,-500.0,0.00030136,3]
[341318996,1730784638411,-504.23356779,0.00030136,3]
[341318997,1730784638421,-510.14782465,0.00030136,3]
[341318998,1730784638430,-151.0,0.00030136,7]
[341318999,1730784638439,-173.43219,0.00030136,7]
[341319000,1730784638449,-180.87726891,0.00030136,3]
[341319001,1730784638458,-505.25389044,0.00030136,3]
[341319002,1730784638468,-500.0,0.00030136,3]
[341319003,1730784638478,-500.0,0.00030136,3]
[341319004,1730784638487,-140.63543415,0.00030136,3]
[341319009,1730784640072,-500.0,0.00027721,2]
[341319010,1730784640081,-500.0,0.00027721,2]
[341319011,1730784640091,-500.0,0.00027721,2]
[341319012,1730784640101,-199.55371804,0.00027721,2]
[341319013,1730784640110,-500.0,0.00027721,2]
[341319014,1730784640119,-500.0,0.00027721,2]
[341319015,1730784640129,-500.0,0.00027721,2]
[341319016,1730784640138,-60.81815514,0.00030136,3]
[341319017,1730784640148,-500.0,0.00030136,3]
[341319018,1730784640157,-504.23600489,0.00030136,3]
[341319019,1730784640167,-496.05478511,0.00030136,3]
[341319020,1730784640176,-500.0,0.00030136,3]
[341319021,1730784640185,-500.0,0.00030136,3]
[341319022,1730784640195,-835.25,0.00030136,3]
[341319023,1730784640204,-151.0,0.00030136,2]
[341319024,1730784640214,-151.0,0.00030136,2]
[341319025,1730784640223,-512.45068738,0.00030136,3]
[341319026,1730784640237,-533.07694337,0.00030136,3]
[341319027,1730784640246,-500.0,0.00030136,3]
[341319028,1730784640256,-183.45393617,0.00030136,3]
[341319029,1730784640265,-500.0,0.00030136,3]
[341319030,1730784640275,-151.0,0.00030136,7]
[341319031,1730784640284,-151.0,0.00030136,7]
[341319032,1730784640294,-514.70840385,0.00030136,2]
[341319033,1730784640303,-263.03932308,0.00030136,3]
[341319034,1730784640314,-303.74216977,0.00030136,3]
[341319035,1730784640323,-500.0,0.00030136,3]
[341319036,1730784640332,-155.925732,0.00030136,7]
[341319037,1730784640342,-151.0,0.00030136,7]
[341319038,1730784640352,-151.0,0.00030136,7]
[341319039,1730784640361,-500.0,0.00030136,3]
[341319040,1730784640370,-500.0,0.00030136,3]
[341319041,1730784640379,-500.0,0.00030136,3]
[341319042,1730784640389,-500.0,0.00030136,3]
[341319043,1730784640400,-500.0,0.00030136,3]
[341319044,1730784640409,-156.285909,0.00030136,7]
[341319045,1730784640420,-151.0,0.00030136,7]
[341319046,1730784640429,-151.0,0.00030136,7]
[341319047,1730784640438,-500.0,0.00030136,3]
[341319048,1730784640447,-1036.19,0.00030136,3]
[341319049,1730784640457,-193.07253746,0.00030136,3]
[341319050,1730784640466,-500.0,0.00030136,3]
[341319051,1730784640476,-207.72179927,0.00030136,3]
[341319052,1730784640492,-453.40201646,0.00027721,2]
[341319078,1730784643576,-26.08095683,0.00027721,2]
[341319084,1730784646083,-20.51702671,0.00027721,2]
[341319086,1730784646094,-279.48297329,0.00027721,2]
[341319088,1730784646107,-220.51702671,0.00027721,2]
[341319089,1730784646117,-297.29526281,0.00027721,2]
[341319090,1730784646130,-202.70473719,0.00027721,2]
[341319091,1730784646140,-209.27103583,0.00030136,3]
[341319092,1730784646150,-517.65576723,0.00030136,3]
[341319093,1730784646161,-505.8643916,0.00030136,3]
[341319094,1730784646171,-500.0,0.00030136,3]
[341319095,1730784646181,-151.0,0.00030136,7]
[341319096,1730784646191,-202.4154,0.00030136,7]
[341319097,1730784646201,-2260.989652,0.00030136,2]
[341319098,1730784646211,-151.0,0.00030136,7]
[341319099,1730784646221,-151.0,0.00030136,7]
[341319100,1730784646233,-182.40629522,0.00030136,3]
[341319101,1730784646243,-151.0,0.00030136,7]
[341319102,1730784646255,-151.0,0.00030136,7]
[341319103,1730784646265,-500.0,0.00030136,3]
[341319104,1730784646276,-500.0,0.00030136,3]
[341319105,1730784646286,-394.2821348,0.00030136,3]
[341319106,1730784646296,-542.31628495,0.00030136,3]
[341319107,1730784646306,-356.39348009,0.00030136,3]
[341319108,1730784646317,-508.00570185,0.00030136,3]
[341319109,1730784646327,-261.70511924,0.00030136,3]
[341319110,1730784646339,-244.62029407,0.00030136,3]
[341319111,1730784646348,-404.37970593,0.00030136,3]
[341319125,1730784794490,282.83847696,0.00033646,30]
[341319182,1730785549230,161.524876,0.00013973,2]
[341319193,1730785648128,-300.0,0.00024617,2]
[341319194,1730785648152,-300.0,0.00024617,2]
[341319195,1730785648174,-529.0,0.00024618,2]
[341319196,1730785648196,-1139.0,0.00024618,2]
[341319197,1730785648217,-2394.0,0.00024618,2]
[341319198,1730785648239,-420.0,0.00026679,2]
[341319199,1730785648260,-171.9198373,0.00028165,2]
[341319200,1730785648281,-674.7517956,0.0003,15]
[341319201,1730785648304,-935.81292849,0.00030036,2]
[341319202,1730785648326,-500.0,0.00030134,2]
[341319203,1730785648347,-500.0,0.00030134,2]
[341319204,1730785648371,-500.0,0.00030134,2]
[341319205,1730785648392,-500.0,0.00030134,2]
[341319206,1730785648415,-202.97427912,0.00030134,2]
[341319207,1730785648436,-339.72134136,0.00030134,2]
[341319208,1730785648543,-160.27865864,0.00030134,2]
[341319209,1730785648564,-51.51577513,0.00030134,2]
[341319263,1730785838518,-448.48422487,0.00030135,2]
[341319264,1730785838527,-500.0,0.00030135,2]
[341319265,1730785838536,-389.04614204,0.00030135,2]
[341319266,1730785838548,-110.95385796,0.00030135,2]
[341319267,1730785838557,-272.90886629,0.00030135,2]
[341319268,1730785838566,-323.38935222,0.00030135,2]
[341319269,1730785838575,-522.17263534,0.00030135,2]
[341319270,1730785838586,-187.0,0.00030136,2]
[341319271,1730785838595,-500.0,0.00030136,3]
[341319272,1730785838604,-513.0792584,0.00030136,3]
[341319273,1730785838613,-542.29085652,0.00030136,3]
[341319274,1730785838622,-500.0,0.00030136,3]
[341319275,1730785838632,-187.241,0.00030136,25]
[341319276,1730785838641,-504.78545713,0.00030136,3]
[341319277,1730785838650,-276.0178603,0.00030136,3]
[341319278,1730785838659,-383.48744995,0.00030136,3]
[341319279,1730785838669,-500.0,0.00030136,3]
[341319280,1730785838678,-500.0,0.00030136,3]
[341319281,1730785838690,-494.1857945,0.00030136,3]
[341319282,1730785838702,-26.5942055,0.00030136,3]
[341319283,1730785838711,-500.0,0.00030136,3]
[341319284,1730785838720,-1323.7,0.00030136,3]
[341319285,1730785838729,-500.0,0.00030136,3]
[341319286,1730785838739,-472.61171794,0.00030136,3]
[341319287,1730785838748,-500.0,0.00030136,3]
[341319288,1730785838758,-502.71278832,0.00030136,3]
[341319289,1730785838768,-161.02864506,0.00030136,3]
[341319290,1730785838777,-202.31536061,0.00030136,3]
[341319291,1730785838786,-500.0,0.00030136,3]
[341319292,1730785838795,-500.0,0.00030136,3]
[341319293,1730785838805,-414.66751326,0.00030136,3]
[341319294,1730785838814,-500.0,0.00030136,3]
[341319295,1730785838823,-500.0,0.00030136,3]
[341319296,1730785838832,-1486.33,0.00030136,3]
[341319297,1730785838842,-500.0,0.00030136,3]
[341319298,1730785838851,-500.0,0.00030136,3]
[341319299,1730785838860,-500.0,0.00030136,3]
[341319300,1730785838869,-545.20653322,0.00030136,3]
[341319301,1730785838879,-866.98,0.00030136,3]
[341319302,1730785838888,-500.0,0.00030136,3]
[341319303,1730785838897,-542.80713181,0.00030136,3]
[341319304,1730785838906,-500.0,0.00030136,3]
[341319305,1730785838915,-500.0,0.00030136,3]
[341319306,1730785838924,-500.0,0.00030136,3]
[341319307,1730785838933,-500.0,0.00030136,3]
[341319308,1730785838944,-500.0,0.00030136,3]
[341319309,1730785838953,-500.0,0.00030136,3]
[341319310,1730785838962,-500.0,0.00030136,3]
[341319311,1730785838971,-979.99,0.00030136,3]
[341319312,1730785838981,-500.0,0.00030136,3]
[341319313,1730785838991,-500.0,0.00030136,3]
[341319314,1730785839000,-500.0,0.00030136,3]
[341319315,1730785839009,-691.1,0.00030136,3]
[341319316,1730785839019,-500.0,0.00030136,3]
[341319317,1730785839028,-500.0,0.00030136,3]
[341319318,1730785839037,-500.0,0.00030136,3]
[341319319,1730785839046,-307.6163623,0.000302,30]
[341319320,1730785839055,-248.1021657,0.000302,30]
[341319321,1730785839064,-316.9625067,0.000302,30]
[341319322,1730785839073,-818.83631242,0.0003021,2]
[341319323,1730785839082,-4275.8692964,0.0003028,3]
[341319324,1730785839091,-175.4443794,0.0003031,2]
[341319325,1730785839101,-500.0,0.0003041,3]
[341319326,1730785839110,-500.0,0.0003041,3]
[341319327,1730785839119,-500.0,0.0003041,3]
[341319328,1730785839128,-500.0,0.0003041,3]
[341319329,1730785839137,-520.78,0.0003041,3]
[341319330,1730785839147,-500.0,0.0003041,3]
[341319331,1730785839156,-1323.7,0.0003041,3]
[341319332,1730785839165,-151.0,0.0003041,2]
[341319333,1730785839174,-331.92293621,0.0003041,3]
[341319334,1730785839184,-500.0,0.0003041,3]
[341319335,1730785839194,-151.0,0.0003041,7]
[341319336,1730785839203,-151.0,0.0003041,7]
[341319337,1730785839213,-500.0,0.0003041,3]
[341319338,1730785839222,-151.0,0.0003041,7]
[341319339,1730785839232,-500.0,0.0003041,3]
[341319340,1730785839241,-247.05859454,0.0003041,3]
[341319341,1730785839250,-500.0,0.0003041,3]
[341319342,1730785839261,-151.0,0.0003041,7]
[341319343,1730785839270,-233.126128,0.0003041,7]
[341319344,1730785839279,-1486.33,0.0003041,3]
[341319345,1730785839288,-151.0,0.0003041,7]
[341319346,1730785839297,-175.054812,0.0003041,7]
[341319347,1730785839306,-151.0,0.0003041,7]
[341319348,1730785839316,-500.0,0.0003041,3]
[341319349,1730785839325,-500.0,0.0003041,3]
[341319350,1730785839335,-500.0,0.0003041,3]
[341319351,1730785839344,-866.98,0.0003041,3]
[341319352,1730785839353,-500.0,0.0003041,3]
[341319353,1730785839362,-500.0,0.0003041,3]
[341319354,1730785839372,-500.0,0.0003041,3]
[341319355,1730785839381,-151.0,0.0003041,7]
[341319356,1730785839391,-500.0,0.0003041,3]
[341319357,1730785839400,-500.0,0.0003041,3]
[341319358,1730785839409,-151.0,0.0003041,7]
[341319359,1730785839419,-500.0,0.0003041,3]
[341319360,1730785839429,-156.657916,0.0003041,7]
[341319361,1730785839440,-500.0,0.0003041,3]
[341319362,1730785839450,-151.0,0.0003041,7]
[341319363,1730785839459,-500.0,0.0003041,3]
[341319364,1730785839469,-979.99,0.0003041,3]
[341319365,1730785839478,-500.0,0.0003041,3]
[341319366,1730785839488,-500.0,0.0003041,3]
[341319367,1730785839500,-500.0,0.0003041,3]
[341319368,1730785839510,-691.1,0.0003041,3]
[341319369,1730785839519,-500.0,0.0003041,3]
[341319370,1730785839528,-500.0,0.0003041,3]
[341319371,1730785839537,-151.0,0.0003041,7]
[341319372,1730785839546,-500.0,0.0003041,3]
[341319373,1730785839555,-500.0,0.00030684,3]
[341319374,1730785839564,-512.37367711,0.00030684,3]
[341319375,1730785839574,-413.95651715,0.00030684,3]
[341319376,1730785839584,-500.0,0.00030684,3]
[341319377,1730785839593,-520.78,0.00030684,3]
[341319378,1730785839602,-363.96726834,0.00030684,3]
[341319380,1730785839611,-1323.7,0.00030684,3]
[341319381,1730785839620,-152.370058,0.00030684,2]
[341319382,1730785839629,-500.0,0.00030684,3]
[341319383,1730785839638,-151.0,0.00030684,7]
[341319384,1730785839647,-151.0,0.00030684,7]
[341319385,1730785839656,-320.66190208,0.00030684,3]
[341319386,1730785839665,-500.0,0.00030684,3]
[341319387,1730785839674,-500.0,0.00030684,3]
[341319388,1730785839684,-1486.33,0.00030684,3]
[341319389,1730785839694,-157.72254869,0.00030684,3]
[341319390,1730785839703,-500.0,0.00030684,3]
[341319391,1730785839712,-500.0,0.00030684,3]
[341319392,1730785839722,-866.98,0.00030684,3]
[341319393,1730785839731,-500.0,0.00030684,3]
[341319394,1730785839740,-500.0,0.00030684,3]
[341319396,1730785839750,-500.0,0.00030684,3]
[341319398,1730785839760,-151.0,0.00030684,7]
[341319400,1730785839769,-500.0,0.00030684,3]
[341319402,1730785839778,-500.0,0.00030684,3]
[341319404,1730785839788,-151.0,0.00030684,7]
[341319406,1730785839797,-500.0,0.00030684,3]
[341319408,1730785839806,-500.0,0.00030684,3]
[341319410,1730785839815,-500.0,0.00030684,3]
[341319412,1730785839824,-151.0,0.00030684,7]
[341319414,1730785839834,-979.99,0.00030684,3]
[341319416,1730785839843,-500.0,0.00030684,3]
[341319418,1730785839853,-500.0,0.00030684,3]
[341319419,1730785839862,-691.1,0.00030684,3]
[341319420,1730785839871,-500.0,0.00030684,3]
[341319421,1730785839881,-500.0,0.00030684,3]
[341319422,1730785839890,-151.0,0.00030684,7]
[341319423,1730785839899,-500.0,0.00030684,3]
[341319424,1730785839908,-151.0,0.000309,7]
[341319426,1730785839917,-151.0,0.000309,7]
[341319427,1730785839926,-151.638034,0.000309,7]
[341319428,1730785839936,-151.0,0.000309,7]
[341319429,1730785839951,-7395.106,0.000309,120]
[341319430,1730785839960,-154.75,0.00030938,3]
[341319431,1730785839970,-4944.75,0.00030948,10]
[341319432,1730785839979,-4120.62,0.00030948,10]
[341319433,1730785839988,-3433.85,0.00030948,10]
[341319434,1730785839997,-2861.55,0.00030948,10]
[341319435,1730785840006,-499.62032761,0.00030958,3]
[341319436,1730785840015,-500.0,0.00030958,3]
[341319437,1730785840025,-520.78,0.00030958,3]
[341319438,1730785840034,-1323.7,0.00030958,3]
[341319439,1730785840043,-500.0,0.00030958,3]
[341319440,1730785840053,-151.0,0.00030958,7]
[341319441,1730785840062,-500.0,0.00030958,3]
[341319442,1730785840071,-500.0,0.00030958,3]
[341319443,1730785840081,-1486.33,0.00030958,3]
[341319444,1730785840090,-500.0,0.00030958,3]
[341319445,1730785840099,-500.0,0.00030958,3]
[341319446,1730785840108,-866.98,0.00030958,3]
[341319447,1730785840117,-500.0,0.00030958,3]
[341319448,1730785840127,-500.0,0.00030958,3]
[341319449,1730785840138,-500.0,0.00030958,3]
[341319450,1730785840147,-151.0,0.00030958,7]
[341319451,1730785840157,-151.0,0.00030958,7]
[341319452,1730785840166,-500.0,0.00030958,3]
[341319453,1730785840175,-500.0,0.00030958,3]
[341319454,1730785840185,-151.0,0.00030958,7]
[341319455,1730785840196,-151.0,0.00030958,7]
[341319456,1730785840205,-606.04422251,0.00030958,3]
[341319457,1730785840215,-306.27964553,0.00030958,3]
[341319458,1730785840225,-500.0,0.00030958,3]
[341319459,1730785840234,-979.99,0.00030958,3]
[341319460,1730785840244,-500.0,0.00030958,3]
[341319461,1730785840253,-500.0,0.00030958,3]
[341319462,1730785840262,-691.1,0.00030958,3]
[341319463,1730785840272,-500.0,0.00030958,3]
[341319464,1730785840281,-500.0,0.00030958,3]
[341319465,1730785840291,-266.880096,0.00030958,7]
[341319466,1730785840300,-500.0,0.00030958,3]
[341319467,1730785840310,-151.0,0.0003108,7]
[341319468,1730785840320,-500.0,0.00031156,2]
[341319469,1730785840329,-502.5963108,0.00031165,5]
[341319470,1730785840339,-505.79183929,0.00031165,5]
[341319471,1730785840348,-500.0,0.00031232,3]
[341319472,1730785840358,-520.78,0.00031232,3]
[341319473,1730785840368,-1323.7,0.00031232,3]
[341319474,1730785840377,-500.0,0.00031232,3]
[341319475,1730785840387,-156.067862,0.00031232,7]
[341319476,1730785840396,-500.0,0.00031232,3]
[341319477,1730785840406,-500.0,0.00031232,3]
[341319478,1730785840415,-1486.33,0.00031232,3]
[341319479,1730785840425,-153.59346835,0.00031232,3]
[341319480,1730785840435,-218.3814092,0.00031232,3]
[341319481,1730785840446,-866.98,0.00031232,3]
[341319482,1730785840455,-558.27227674,0.00031232,3]
[341319483,1730785840464,-500.0,0.00031232,3]
[341319484,1730785840473,-500.0,0.00031232,3]
[341319485,1730785840483,-151.0,0.00031232,7]
[341319486,1730785840493,-500.0,0.00031232,3]
[341319487,1730785840507,-500.0,0.00031232,3]
[341319488,1730785840516,-151.0,0.00031232,7]
[341319489,1730785840525,-500.0,0.00031232,3]
[341319490,1730785840535,-979.99,0.00031232,3]
[341319491,1730785840544,-500.0,0.00031232,3]
[341319492,1730785840553,-500.0,0.00031232,3]
[341319493,1730785840562,-691.1,0.00031232,3]
[341319494,1730785840571,-500.0,0.00031232,3]
[341319495,1730785840580,-500.0,0.00031232,3]
[341319496,1730785840590,-500.0,0.00031232,3]
[341319497,1730785840600,-502.57678498,0.00031347,5]
[341319498,1730785840608,-363.05906337,0.00031347,5]
[341319499,1730785840618,-500.0,0.00031347,2]
[341319500,1730785840626,-266.63813423,0.00031347,5]
[341319501,1730785840636,-172.851513,0.00031347,5]
[341319502,1730785840644,-614.0,0.000314,2]
[341319503,1730785840654,-160.27935255,0.000314,5]
[341319504,1730785840663,-150.53276133,0.000314,5]
[341319505,1730785840748,-500.0,0.000314,5]
[341319506,1730785840758,-500.0,0.0003142,5]
[341319507,1730785840767,-210.42934858,0.0003142,5]
[341319508,1730785840776,-201.42378151,0.0003142,5]
[341319509,1730785840785,-500.0,0.0003142,5]
[341319510,1730785840794,-500.0,0.0003148,5]
[341319511,1730785840803,-1000.0,0.00031506,30]
[341319512,1730785840813,-54.55483641,0.00031506,30]